Cogmind - Beta 11 X4 @@@ ROGUE MODE // 2021.05.24 @ 01:03:13 Player: Torako Result: Destroyed by B-75 Beast with Heavy Machine Gun Performance ------------- Evolutions (4) 2000 Regions Visited (14) 2800 Robots Destroyed (124) 620 Value Destroyed (5026) 5026 Prototype IDs (23) 460 Alien Tech Used (0) 0 Bonus (2831) 2831 TOTAL SCORE: 13737 Bonus ------- High Alert Combat Kills 280 Follower Combat Kills 177 Entered Garrisons 600 Used RIF Installer 1500 Aligned with FarCom 300 Friendly Fire -26 Cogmind --------- Core Integrity 0/850 Matter 294/300 Energy 138/140 System Corruption 13% Temperature Cool (14) Movement Hovering (60) Location -6/Extension Parts ------- > --- POWER (1) -------- Light Deuterium Engine > --- PROPULSION (6) --- Gravmag Array > --- UTILITY (5) ------ Improved Target Analyzer Core Analyzer Relay Coupler [NC] (27) Relay Coupler [Grunt] (22) Relay Coupler [Sentry] (18) > --- WEAPON (3) ------- Gauss Rifle Remote Datajack > --- INVENTORY (5) ---- Advanced Melee Analysis Suite Skeleton Box Shock Rifle High-powered Shock Rifle Improved Remote Datajack Peak State ------------ > --- POWER ------------ Light Deuterium Engine > --- PROPULSION ------- Improved Gravmag System Gravmag Array > --- UTILITY ---------- Improved Target Analyzer Core Analyzer Relay Coupler [NC] Relay Coupler [Grunt] Relay Coupler [Sentry] > --- WEAPON ----------- Gauss Rifle Gauss Rifle Remote Datajack > --- INVENTORY -------- Advanced Melee Analysis Suite Skeleton Box Shock Rifle High-powered Shock Rifle Improved Remote Datajack [Rating: 49] Favorites ----------- Power Light Nuclear Core Engine Ion Engine Power Core Light Nuclear Core Propulsion Aluminum Leg Treads Light Treads Leg Aluminum Leg Hover Unit Improved Gravmag System Flight Unit Cesium-ion Thruster Utility High-capacity Storage Unit Device Improved Heat Sink Storage High-capacity Storage Unit Processor Visual Processing Unit Hackware Relay Coupler [NC] Protection Improved Light Armor Plating Weapon Assault Rifle Energy Gun Tesla Rifle Energy Cannon Heavy Ion Cannon Ballistic Gun Assault Rifle Ballistic Cannon Flak Cannon Launcher Heavy Rocket Launcher Special Weapon Remote Datajack Slashing Weapon Scythe Build | -11 -10 -10 -10 -9 -8 -8 -8 -7 -7 -7 -6 -6 -6 -6 ------- Run | Scr Mat Min Exi Min Mat Gar Mat Fac Gar Fac Fac Gar Fac Ext Slots Evolved 8 | . . . . . 4 . . 2 . . 2 . . . Power . | . . . . . . . . . . . . . . . Propulsion 4 | . . . . . 1 . . 1 . . 2 . . . Utility 3 | . . . . . 2 . . 1 . . . . . . Weapon 1 | . . . . . 1 . . . . . . . . . Parts Attached 153 | 6 9 . . 5 8 . 17 2 43 1 2 15 45 . Power 13 | 1 . . . . 1 . 1 . 4 . . 1 5 . Engine 6 | 1 . . . . . . . . 2 . . . 3 . Core 7 | . . . . . 1 . 1 . 2 . . 1 2 . Reactor . | . . . . . . . . . . . . . . . Propulsion 45 | 2 2 . . . 3 . 2 1 14 . 2 3 16 . Treads 17 | . 2 . . . 3 . 2 1 2 . . . 7 . Leg 22 | 2 . . . . . . . . 12 . 2 3 3 . Wheel . | . . . . . . . . . . . . . . . Hover 5 | . . . . . . . . . . . . . 5 . Flight 1 | . . . . . . . . . . . . . 1 . Utility 38 | 1 5 . . 1 3 . 6 1 8 1 . 3 9 . Device 7 | . 1 . . . 1 . 1 . 1 . . 1 2 . Storage 5 | 1 2 . . 1 . . . . . . . 1 . . Processor 11 | . 2 . . . 1 . 3 . 1 1 . . 3 . Hackware 4 | . . . . . . . . . 1 . . . 3 . Protection 11 | . . . . . 1 . 2 1 5 . . 1 1 . Artifact . | . . . . . . . . . . . . . . . Weapon 57 | 2 2 . . 4 1 . 8 . 17 . . 8 15 . Energy Gun 7 | . . . . . . . . . 6 . . . 1 . Energy Cannon 4 | . . . . 1 . . . . 2 . . . 1 . Ballistic Gun 29 | 2 1 . . 2 1 . 5 . 3 . . 5 10 . Ballistic Cannon 7 | . . . . . . . 2 . 3 . . 1 1 . Launcher 5 | . . . . 1 . . . . 1 . . 2 1 . Special Weapon 1 | . . . . . . . . . . . . . 1 . Impact Weapon . | . . . . . . . . . . . . . . . Slashing Weapon 4 | . 1 . . . . . 1 . 2 . . . . . Piercing Weapon . | . . . . . . . . . . . . . . . Special Melee Weapon . | . . . . . . . . . . . . . . . Unidentified Prototypes . | . . . . . . . . . . . . . . . Corrupted Parts 8 | . . . . 2 . . . . 6 . . . . . System Corruption 30 | . . . . 10 . . . . 20 . . . . . Parts Lost 84 | . . . . . 2 . 8 . 33 . . 10 29 2 Power 9 | . . . . . 1 . . . 4 . . 1 3 . Propulsion 30 | . . . . . 1 . 2 . 10 . . 3 13 1 Utility 16 | . . . . . . . 2 . 7 . . 3 4 . Weapon 29 | . . . . . . . 4 . 12 . . 3 9 1 Highest Loss Streak 15 | . . . . . 2 . 4 . 15 . . 4 12 2 Average Slot Usage (%) 90 | . 97 100 100 100 99 100 99 99 71 100 100 95 73 73 Engine 4 | . 14 14 14 14 3 . . . 1 . . . 1 6 Core 4 | . . . . . 5 9 9 7 4 7 6 5 1 . Treads 14 | . 16 28 28 28 26 27 26 30 4 . . . 8 . Leg 11 | . 11 . . . . . . . 15 30 40 37 12 . Device 4 | . 8 . . . 8 9 9 7 3 3 . 4 4 . Storage 8 | . 14 14 14 14 9 9 9 7 7 7 6 6 4 . Processor 8 | . 2 14 14 14 9 9 10 15 8 3 6 . 8 13 Hackware 2 | . . . . . . . . . . 7 6 6 6 20 Protection 5 | . . . . . 9 9 7 6 5 15 13 12 1 . Energy Gun 1 | . . . . . . . . . 7 . . . . . Ballistic Gun 18 | . 23 28 28 28 27 27 23 23 4 15 13 16 16 13 Ballistic Cannon 1 | . . . . . . . . . 4 7 6 1 . . Naked Turns . | . . . . . . . . . . . . . . . Heaviest Build 68 | 14 50 29 29 51 60 60 61 62 68 66 65 67 61 16 Greatest Support 80 | 20 40 40 40 40 60 60 60 80 80 45 65 65 55 30 Greatest Overweight (x) 19 | 1 2 . . 1 . . 1 . 19 1 . 1 16 . Average Overweight (x) . | . . . . . . . . . 1 1 . . . . Largest Inventory Capacity 20 | 8 20 15 15 20 20 20 20 20 20 20 20 20 20 5 Average Capacity 18 | 7 16 15 15 18 20 20 20 20 20 20 20 20 16 5 Most Carried 20 | 7 12 12 15 20 20 20 20 20 20 20 19 20 20 5 Average Carried 16 | 5 9 12 12 15 16 18 18 18 16 19 18 19 14 5 Final Capacity 20 | 8 15 15 15 20 20 20 20 20 20 20 20 20 5 5 Final Carried 20 | 7 12 12 14 19 20 17 20 20 19 20 18 19 5 5 Class Distribution -------------------- 39% | Mutant 23% | Scavenger-Skirmisher 17% | Scavenger-Tank 8% | Scavenger-Mutant 7% | Scavenger-Gunner Dominant Class ---------------- Mutant | -10/Materials Mutant | -10/Mines Mutant | -10/Exiles Mutant | -9/Mines Scavenger-Skirmisher | -8/Materials Scavenger-Skirmisher | -8/Garrison Scavenger-Gunner | -8/Materials Scavenger-Gunner | -7/Factory Mutant | -7/Garrison Scavenger-Tank | -7/Factory Scavenger-Tank | -6/Factory Scavenger-Tank | -6/Garrison Scavenger-Skirmisher | -6/Factory Scavenger-Mutant | -6/Extension Resources | -11 -10 -10 -10 -9 -8 -8 -8 -7 -7 -7 -6 -6 -6 -6 ----------- Run | Scr Mat Min Exi Min Mat Gar Mat Fac Gar Fac Fac Gar Fac Ext Matter Collected 4596 | 356 152 45 344 80 190 64 583 . 835 76 . 681 1190 . Remotely . | . . . . . . . . . . . . . . . Salvage Created 4333 | 248 154 45 . 45 249 91 850 . 932 161 . 576 982 . Parts 247 | 23 12 4 . . 9 8 48 . 31 7 . 39 66 . Haulers Intercepted 1 | . . . . . 1 . . . . . . . . . Recyclers Shooed . | . . . . . . . . . . . . . . . Parts Field Recycled . | . . . . . . . . . . . . . . . Retrieved Matter . | . . . . . . . . . . . . . . . Parts Self-Destructed . | . . . . . . . . . . . . . . . Prevented . | . . . . . . . . . . . . . . . Kills | -11 -10 -10 -10 -9 -8 -8 -8 -7 -7 -7 -6 -6 -6 -6 ------- Run | Scr Mat Min Exi Min Mat Gar Mat Fac Gar Fac Fac Gar Fac Ext Combat Hostiles Destroyed 107 | . 3 3 . 3 4 4 18 . 23 4 . 27 18 . Melee 3 | . . . . . . . . . 3 . . . . . Guns 64 | . 3 3 . 3 4 4 16 . 7 1 . 10 13 . Cannons 18 | . . . . . . . 2 . 9 3 . 1 3 . AOE 21 | . . . . . . . . . 3 . . 16 2 . Classes Destroyed 15 | 3 2 1 . 1 1 1 1 . 3 . . . 2 . Worker 5 | 2 . . . . . . 1 . . . . . 2 . Builder 2 | . . . . . . . . . . . . . 2 . Tunneler 7 | 6 . . . . . . 1 . . . . . . . Hauler 1 | . . . . . 1 . . . . . . . . . Recycler 2 | 1 . . . . . . . . . . . . 1 . Watcher 3 | . 2 . . . . . 1 . . . . . . . Swarmer 30 | . . 3 . . . 3 2 . . . . 19 3 . Grunt 36 | . 3 . . . 4 . 11 . 11 3 . 3 1 . Brawler 4 | . . . . . . . . . 3 . . . 1 . Duelist 2 | . . . . . . . . . 2 . . . . . Sentry 15 | . . . . . . 1 3 . 5 . . 4 2 . Specialist 3 | . . . . . . . . . . . . . 3 . Hunter 6 | . . . . . . . 2 . 1 . . . 3 . Programmer 8 | . . . . . . . . . 1 1 . 1 5 . Assembled 3 | . . . . 3 . . . . . . . . . . Best Kill Streak 12 | 7 4 3 . 2 2 3 5 . 5 2 . 12 8 . Combat Bots Only 12 | . 2 3 . 2 2 3 5 . 5 2 . 12 5 . Max Kills in Single Turn 3 | 1 1 1 . 1 1 2 1 . 1 2 . 3 2 . Gunslinging 1 | . . . . . . 1 . . . . . 1 . . Exploded 3 | . . . . . . . . . 1 . . 3 2 . Melee 1 | . . . . . . . . . 1 . . . . . Uniques/NPCs Destroyed . | . . . . . . . . . . . . . . . Combat | -11 -10 -10 -10 -9 -8 -8 -8 -7 -7 -7 -6 -6 -6 -6 -------- Run | Scr Mat Min Exi Min Mat Gar Mat Fac Gar Fac Fac Gar Fac Ext Damage Taken 10732 | . 97 91 . 76 240 50 1416 . 3800 30 59 1274 3359 240 Core 1751 | . 22 17 . . . 6 153 . 684 . . 132 704 33 Absorbed by Shields . | . . . . . . . . . . . . . . . Core Remaining (%) 64 | 100 . . . 84 . . 71 . . 2 . . . . Volleys Fired 344 | 17 15 6 . 8 19 5 55 . 81 7 . 53 78 . Largest 3 | 2 2 2 . 2 3 3 3 . 3 3 . 3 3 . Hottest 195 | 40 40 40 . 40 69 69 90 . 195 100 . 100 90 . Shots Fired 705 | 34 29 12 . 17 57 15 144 . 118 20 . 101 158 . Gun 585 | 34 29 12 . 16 57 15 127 . 54 13 . 81 147 . Cannon 98 | . . . . 1 . . 17 . 60 7 . 3 10 . Launcher 22 | . . . . . . . . . 4 . . 17 1 . Special . | . . . . . . . . . . . . . . . Kinetic 638 | 34 29 12 . 16 57 15 144 . 73 20 . 84 154 . Thermal 12 | . . . . 1 . . . . 9 . . . 2 . Explosive 22 | . . . . . . . . . 4 . . 17 1 . Electromagnetic 33 | . . . . . . . . . 32 . . . 1 . Robot Hit Streak 13 | 5 7 7 . 5 10 6 13 . 13 4 . 8 9 . Robot Miss Streak 6 | 3 2 3 . 4 3 2 3 . 4 4 . 6 6 . Penetration Max 1 | . . . . . . . . . 1 1 . . 1 . Secondary Targets 7 | . 1 1 . . . 2 1 . . . . 2 . . Max Gunslinging Chain 1 | . 1 1 . . . 1 1 . . . . 1 . . Shots Hit Robots 465 | 19 21 7 . 9 34 8 107 . 96 12 . 52 100 . Core Hits 290 | 10 8 3 . 7 14 5 52 . 58 13 1 49 70 . Critical Kills 4 | . . 1 . . . . 3 . . . . . . . Critical Parts Destroyed 6 | . . . . 1 . . 3 . 1 . . . 1 . Critical Strikes 16 | . . 1 . 1 . . 6 . 6 . . . 2 . Destroy 10 | . . 1 . 1 . . 6 . 1 . . . 1 . Blast 4 | . . . . . . . . . 3 . . . 1 . Sever 2 | . . . . . . . . . 2 . . . . . Melee Attacks 31 | . 5 . . . . . 5 . 21 . . . . . Impact . | . . . . . . . . . . . . . . . Slashing 31 | . 5 . . . . . 5 . 21 . . . . . Piercing . | . . . . . . . . . . . . . . . Sneak Attacks 1 | . . . . . . . 1 . . . . . . . Combat Hostiles . | . . . . . . . . . . . . . . . Follow-up Attacks . | . . . . . . . . . . . . . . . Damage Inflicted 11238 | 253 254 104 . 132 536 112 1660 . 2981 279 23 2430 2474 . Guns 6314 | 253 254 104 . 106 536 112 1220 . 800 167 . 830 1932 . Cannons 1789 | . . . . 26 . . 272 . 1148 112 . 35 196 . Explosions 2502 | . . . . . . . . . 591 . . 1565 346 . Melee 599 | . . . . . . . 157 . 442 . . . . . Ramming 34 | . . . . . . . 11 . . . 23 . . . Kinetic 7462 | 253 254 104 . 106 536 112 1492 . 1415 279 . 865 2046 . Thermal 195 | . . . . 26 . . . . 107 . . . 62 . Explosive 2502 | . . . . . . . . . 591 . . 1565 346 . Electromagnetic 446 | . . . . . . . . . 426 . . . 20 . Impact . | . . . . . . . . . . . . . . . Slashing 599 | . . . . . . . 157 . 442 . . . . . Piercing . | . . . . . . . . . . . . . . . Highest Corruption 45 | . . . . 10 . . 1 . 45 45 . 1 13 13 Average Corruption 13 | . . . . 8 . . 1 . 14 45 . 1 4 13 Corruption Purged . | . . . . . . . . . . . . . . . Effects 146 | . . . . . . . . . 59 47 . 2 33 5 Message Errors 31 | . . . . . . . . . 16 10 . 2 3 . Matter Fused 27 | . . . . . . . . . 11 9 . . 7 . Heat Flow Errors 3 | . . . . . . . . . 2 1 . . . . Energy Discharges 18 | . . . . . . . . . 7 5 . . 4 2 Data Loss (minor) 13 | . . . . . . . . . 4 3 . . 6 . Data Loss (major) 8 | . . . . . . . . . 5 2 . . 1 . Misfires 5 | . . . . . . . . . 3 1 . . 1 . Alerts 2 | . . . . . . . . . 1 . . . 1 . Misdirections 31 | . . . . . . . . . 9 14 . . 5 3 Weapon Failures 8 | . . . . . . . . . 1 2 . . 5 . Overload Shots . | . . . . . . . . . . . . . . . Overflow Damage 178 | . . . . . . . 54 . 14 . . 104 6 . Projectiles 14 | . . . . . . . . . 14 . . . . . Explosions 110 | . . . . . . . . . . . . 104 6 . Melee 54 | . . . . . . . 54 . . . . . . . Knockbacks 16 | . . . . . . . 8 . 6 1 . . 1 . Impact . | . . . . . . . . . . . . . . . Kinetic 15 | . . . . . . . 8 . 5 1 . . 1 . Secondary 1 | . . . . . . . . . 1 . . . . . Self-Inflicted Damage 226 | . . . . . . . . . 145 . . 24 57 . Shots 6 | . . . . . . . . . 4 . . 1 1 . Rammed 1 | . . . . . . . 1 . . . . . . . Targets Rammed 2 | . . . . . . . 1 . . . 1 . . . Kicked 1 | . . . . . . . . . . . 1 . . . Crushed . | . . . . . . . . . . . . . . . Highest Temperature 468 | . . . . 24 66 45 374 . 468 250 . 42 8 . Average Temperature 94 | . . . . 13 18 19 92 . 141 58 . 15 6 . Received Heat Transfer 2565 | . 54 . . . 144 . 585 . 1200 . 27 231 294 30 Effects 9 | . . . . . . . 4 . 5 . . . . . Shutdowns 1 | . . . . . . . . . 1 . . . . . Energy Bleed 1 | . . . . . . . . . 1 . . . . . Interference 5 | . . . . . . . 3 . 2 . . . . . Matter Decay 1 | . . . . . . . . . 1 . . . . . Damage (minor) 1 | . . . . . . . 1 . . . . . . . Siege Activations . | . . . . . . . . . . . . . . . Robots Corrupted 1 | . . . . . . . . . 1 . . . . . Combat Hostiles 1 | . . . . . . . . . 1 . . . . . Parts Fried 3 | . . . . . . . . . 3 . . . . . Impact Corruptions . | . . . . . . . . . . . . . . . Robots Melted . | . . . . . . . . . . . . . . . Combat Hostiles . | . . . . . . . . . . . . . . . Parts Melted 1 | . . . . . . . . . 1 . . . . . Heat Transferred 259 | . . . . 37 . . . . 148 . . . 74 . Parts Sabotaged 6 | . . . . . . . . . . . . . 6 . Parts Stolen . | . . . . . . . . . . . . . . . Parts Stripped . | . . . . . . . . . . . . . . . Power Chain Reactions . | . . . . . . . . . . . . . . . Missiles Intercepted . | . . . . . . . . . . . . . . . Alert | -11 -10 -10 -10 -9 -8 -8 -8 -7 -7 -7 -6 -6 -6 -6 ------- Run | Scr Mat Min Exi Min Mat Gar Mat Fac Gar Fac Fac Gar Fac Ext Peak Influence 703 | 45 111 107 . 30 136 199 413 100 552 329 112 703 429 204 Initial 363 | . 29 22 . . 11 29 96 100 70 279 82 78 363 174 Average 246 | 19 52 5 . 2 67 116 271 100 386 245 87 458 333 175 Maximum Alert Level 3 | . . . . . . . 2 . 2 1 . 3 2 1 Low Security (%) 41 | 100 100 100 . 100 100 100 10 100 4 31 100 20 . 96 Level 1 36 | . . . . . . . 81 . 47 68 . 3 90 3 Level 2 21 | . . . . . . . 8 . 47 . . 76 9 . Level 3 . | . . . . . . . . . . . . . . . Level 4 . | . . . . . . . . . . . . . . . Level 5 . | . . . . . . . . . . . . . . . High Security . | . . . . . . . . . . . . . . . Max Security . | . . . . . . . . . . . . . . . Squads Dispatched 11 | . 3 . . . 1 . 3 . . 1 1 . 2 . Investigation 3 | . 1 . . . . . 2 . . . . . . . Extermination 2 | . . . . . . . . . . 1 . . 1 . Reinforcement 5 | . 2 . . . . . 1 . . . 1 . 1 . Assault . | . . . . . . . . . . . . . . . Garrison 1 | . . . . . 1 . . . . . . . . . Intercept . | . . . . . . . . . . . . . . . Construction Impeded 1 | . . . . . . . . . . . . . 1 . Haulers Reinforced . | . . . . . . . . . . . . . . . Cargo Convoy Interrupts . | . . . . . . . . . . . . . . . Stealth | -11 -10 -10 -10 -9 -8 -8 -8 -7 -7 -7 -6 -6 -6 -6 --------- Run | Scr Mat Min Exi Min Mat Gar Mat Fac Gar Fac Fac Gar Fac Ext Distress Signals 7 | . 1 . . . 3 . 3 . . . . . . . Communications Jammed 13 | . . . . . . . . . . . . . 13 . Distress Signals 13 | . . . . . . . . . . . . . 13 . Times Spotted 156 | . 7 2 . 6 12 4 32 . 28 4 3 23 30 5 Peak Tracking Total 10 | . 3 2 . 2 4 3 6 . 10 2 2 5 10 5 Tactical Retreats 23 | . . . . 1 2 1 7 . 8 . . 3 1 . Traps | -11 -10 -10 -10 -9 -8 -8 -8 -7 -7 -7 -6 -6 -6 -6 ------- Run | Scr Mat Min Exi Min Mat Gar Mat Fac Gar Fac Fac Gar Fac Ext Traps Triggered 13 | . . . . 1 . . 2 . 6 1 . 3 . . Indirectly . | . . . . . . . . . . . . . . . Trap Hack Attempts . | . . . . . . . . . . . . . . . Triggered . | . . . . . . . . . . . . . . . Disarmed . | . . . . . . . . . . . . . . . Reprogrammed . | . . . . . . . . . . . . . . . Reused . | . . . . . . . . . . . . . . . Traps Extracted . | . . . . . . . . . . . . . . . Installed . | . . . . . . . . . . . . . . . Triggered . | . . . . . . . . . . . . . . . Exploded 2 | . . . 2 . . . . . . . . . . . Machines | -11 -10 -10 -10 -9 -8 -8 -8 -7 -7 -7 -6 -6 -6 -6 ---------- Run | Scr Mat Min Exi Min Mat Gar Mat Fac Gar Fac Fac Gar Fac Ext Machines Disabled 6 | . . 1 . . . 1 . . 1 . . 2 1 . Max in Single Turn 2 | . . 1 . . . 1 . . 1 . . 2 1 . Garrison Relay 2 | . . . . . . 1 . . 1 . . . . . Machines Sabotaged . | . . . . . . . . . . . . . . . Garrisons Compromised . | . . . . . . . . . . . . . . . Overloaded Fab Kills . | . . . . . . . . . . . . . . . Fab Network Shutdowns . | . . . . . . . . . . . . . . . Hacking | -11 -10 -10 -10 -9 -8 -8 -8 -7 -7 -7 -6 -6 -6 -6 --------- Run | Scr Mat Min Exi Min Mat Gar Mat Fac Gar Fac Fac Gar Fac Ext Machines Accessed 20 | . 3 1 2 1 3 . 5 1 . . 1 . 3 . Terminals 13 | . 2 1 . . 2 . 5 . . . . . 3 . Fabricators . | . . . . . . . . . . . . . . . Repair Stations . | . . . . . . . . . . . . . . . Recycling Units 1 | . 1 . . . . . . . . . . . . . Scanalyzers . | . . . . . . . . . . . . . . . Garrison Access 3 | . . . . . 1 . . 1 . . 1 . . . Total Hacks 43 | . 6 2 6 1 9 . 13 1 . . 1 . 4 . Successful 25 | . 5 1 6 1 5 . 3 1 . . 1 . 2 . Failed 18 | . 1 1 . . 4 . 10 . . . . . 2 . Catastrophic 2 | . . . . . . . 2 . . . . . . . Database Lockouts . | . . . . . . . . . . . . . . . Manual 27 | . 6 2 1 . 6 . 11 . . . . . 1 . Terminals 32 | . 5 2 . . 8 . 13 . . . . . 4 . Fabricators . | . . . . . . . . . . . . . . . Repair Stations . | . . . . . . . . . . . . . . . Recycling Units 1 | . 1 . . . . . . . . . . . . . Scanalyzers . | . . . . . . . . . . . . . . . Garrison Access 3 | . . . . . 1 . . 1 . . 1 . . . Terminal Hacks 11 | . . 1 6 1 1 . 1 . . . . . 1 . Record 5 | . . . 5 . . . . . . . . . . . Open Door 2 | . . . . 1 . . . . . . . . 1 . Branch Access Points 1 | . . . . . 1 . . . . . . . . . Unreport Threat 2 | . . 1 . . . . 1 . . . . . . . EX-Prototype ID Bank 1 | . . . 1 . . . . . . . . . . . Fabricator Hacks . | . . . . . . . . . . . . . . . Repair Station Hacks . | . . . . . . . . . . . . . . . Recycling Unit Hacks . | . . . . . . . . . . . . . . . Scanalyzer . | . . . . . . . . . . . . . . . Garrison Access Hacks 3 | . . . . . 1 . . 1 . . 1 . . . Unlock Access 3 | . . . . . 1 . . 1 . . 1 . . . Unauthorized Hacks 11 | . 5 . . . 3 . 2 . . . . . 1 . Terminals 10 | . 4 . . . 3 . 2 . . . . . 1 . Track 4 | . 2 . . . 1 . . . . . . . 1 . Botnet 6 | . 2 . . . 2 . 2 . . . . . . . Fabricators . | . . . . . . . . . . . . . . . Repair Stations . | . . . . . . . . . . . . . . . Recycling Units 1 | . 1 . . . . . . . . . . . . . Tunnel 1 | . 1 . . . . . . . . . . . . . Scanalyzers . | . . . . . . . . . . . . . . . Garrison Access . | . . . . . . . . . . . . . . . Data Cores Recovered . | . . . . . . . . . . . . . . . Used . | . . . . . . . . . . . . . . . Hacking Detections 10 | . 1 . . . 2 . 5 1 . . . . 1 . Full Trace Events 1 | . . . . . . . 1 . . . . . . . Feedback Events 1 | . . . . . . . 1 . . . . . . . Corruption 1 | . . . . . . . 1 . . . . . . . Feedback Blocked . | . . . . . . . . . . . . . . . Robot Schematics Acquired . | . . . . . . . . . . . . . . . Robots Built . | . . . . . . . . . . . . . . . Matter . | . . . . . . . . . . . . . . . Time . | . . . . . . . . . . . . . . . Total Robot Build Rating . | . . . . . . . . . . . . . . . Part Schematics Acquired . | . . . . . . . . . . . . . . . Parts Built . | . . . . . . . . . . . . . . . Matter . | . . . . . . . . . . . . . . . Time . | . . . . . . . . . . . . . . . Total Part Build Rating . | . . . . . . . . . . . . . . . Parts Repaired . | . . . . . . . . . . . . . . . Time . | . . . . . . . . . . . . . . . Parts Recycled . | . . . . . . . . . . . . . . . Recycled Matter . | . . . . . . . . . . . . . . . Retrieved Matter . | . . . . . . . . . . . . . . . Retrieved Components . | . . . . . . . . . . . . . . . Parts Scanalyzed . | . . . . . . . . . . . . . . . Part Schematics Acquired . | . . . . . . . . . . . . . . . Parts Damaged . | . . . . . . . . . . . . . . . Bothacking | -11 -10 -10 -10 -9 -8 -8 -8 -7 -7 -7 -6 -6 -6 -6 ------------ Run | Scr Mat Min Exi Min Mat Gar Mat Fac Gar Fac Fac Gar Fac Ext Used RIF Installer 3 | . . . . . . 1 . . 1 . . 1 . . Signal Jammer 1 | . . . . . . . . . 1 . . . . . Patrol Navigation 1 | . . . . . . . . . . . . 1 . . Robots Hacked . | . . . . . . . . . . . . . . . Non-combat . | . . . . . . . . . . . . . . . Combat . | . . . . . . . . . . . . . . . Robot Hacks Applied . | . . . . . . . . . . . . . . . Relay Couplers Released 14 | . . . . . . 5 . . 5 . . . 4 . Machine Destruction 10 | . . . . . . 5 . . 5 . . . . . Programmers 4 | . . . . . . . . . . . . . 4 . Attached 4 | . . . . . . . . . 1 . . . 3 . Robots Rewired 3 | . . . . . . . . . 3 . . . . . Allies Hacked . | . . . . . . . . . . . . . . . Hacks Repelled . | . . . . . . . . . . . . . . . Allies | -11 -10 -10 -10 -9 -8 -8 -8 -7 -7 -7 -6 -6 -6 -6 -------- Run | Scr Mat Min Exi Min Mat Gar Mat Fac Gar Fac Fac Gar Fac Ext Total Allies 3 | . . . . . . . . . 3 . . . . . Largest Group 3 | . . . . . . . . . 3 . . . . . Highest-Rated Group 63 | . . . . . . . . . 63 . . . . . Highest-Rated Ally 21 | . . . . . . . . . 21 . . . . . Total Orders . | . . . . . . . . . . . . . . . Ally Attacks 23 | . . . . . . . . . 23 . . . . . Total Damage 461 | . . . . . . . . . 461 . . . . . Kills 5 | . . . . . . . . . 5 . . . . . Allies Corrupted . | . . . . . . . . . . . . . . . Allies Melted . | . . . . . . . . . . . . . . . Intel | -11 -10 -10 -10 -9 -8 -8 -8 -7 -7 -7 -6 -6 -6 -6 ------- Run | Scr Mat Min Exi Min Mat Gar Mat Fac Gar Fac Fac Gar Fac Ext Robot Analysis Total . | . . . . . . . . . . . . . . . Derelict Logs Recovered 2 | . . 1 . 1 . . . . . . . . . . Drone Launches . | . . . . . . . . . . . . . . . Drone Recoveries . | . . . . . . . . . . . . . . . Exploration | -11 -10 -10 -10 -9 -8 -8 -8 -7 -7 -7 -6 -6 -6 -6 ------------- Run | Scr Mat Min Exi Min Mat Gar Mat Fac Gar Fac Fac Gar Fac Ext Turns Passed 8799 | 205 514 381 444 652 543 455 1074 71 1712 586 29 1021 1059 53 Spaces Moved 3909 | 72 220 220 274 251 214 261 405 41 524 267 21 527 517 95 Core 12 | 7 . . . . . . . . 4 . . . 1 . Treads 1939 | . 121 220 274 251 214 261 405 41 123 . . . 29 . Legs 1618 | 65 99 . . . . . . . 397 267 21 527 242 . Wheels . | . . . . . . . . . . . . . . . Hover 340 | . . . . . . . . . . . . . 245 95 Flight . | . . . . . . . . . . . . . . . Fastest Speed 50 | 50 120 160 160 160 160 163 163 162 120 200 120 120 52 56 Average Speed 176 | 119 196 160 160 227 160 163 166 162 257 200 120 152 142 56 Slowest Speed 1000 | 200 280 160 160 260 163 163 263 162 1000 200 120 200 850 56 Overloaded Moves . | . . . . . . . . . . . . . . . Propulsion Burnouts . | . . . . . . . . . . . . . . . Robots Hopped . | . . . . . . . . . . . . . . . Cave-ins Triggered . | . . . . . . . . . . . . . . . Exploration Rate (%) 32 | 5 49 46 64 59 20 40 37 2 50 7 1 71 10 24 Regions Visited 14 Branch Regions 4 Pre-discovered Areas 2 | . 1 . 1 . . . . . . . . . . . Known Exits Taken 3 | . . . . . 1 . . 1 . . 1 . . . Unknown Exits Taken 8 | 1 1 1 1 1 . . 1 . . 1 . . 1 . Scrap Searched 1 | . . . . 1 . . . . . . . . . . Spaces Dug 11 | . 3 . . . . . 2 . . . . 6 . . Terrain Destroyed 113 | . 3 . . . . . 2 . 41 . . 56 11 . Melee 5 | . 3 . . . . . 2 . . . . . . . Projectile 12 | . . . . . . . . . 3 . . 6 3 . AOE 96 | . . . . . . . . . 38 . . 50 8 . Terrain Rammed . | . . . . . . . . . . . . . . . Walls Destroyed . | . . . . . . . . . . . . . . . Machines Disabled . | . . . . . . . . . . . . . . . Actions | -11 -10 -10 -10 -9 -8 -8 -8 -7 -7 -7 -6 -6 -6 -6 --------- Run | Scr Mat Min Exi Min Mat Gar Mat Fac Gar Fac Fac Gar Fac Ext Total 5199 | 154 263 237 280 318 370 285 703 45 743 297 24 670 715 95 Wait 575 | 53 . 12 3 38 120 5 204 . 38 21 . 38 43 . Move 3898 | 71 219 219 273 250 214 260 404 41 523 266 21 526 516 95 Hop . | . . . . . . . . . . . . . . . Pick Up 95 | 7 9 . 3 11 8 6 10 2 12 . . 14 13 . Fast Attach 69 | 6 4 . . . 1 . 3 . 25 1 . 4 25 . Attach 59 | . 1 . . . 5 . 9 2 16 . 2 5 19 . Detach 20 | . 3 . . . . . 4 . 3 1 . 1 8 . Swap 25 | . 4 . . 5 2 . 5 . 2 . . 6 1 . Drop 44 | . 3 . 1 6 1 9 3 . 1 . . 8 12 . Fire 344 | 17 15 6 . 8 19 5 55 . 81 7 . 53 78 . Melee 31 | . 5 . . . . . 5 . 21 . . . . . Ram 1 | . . . . . . . . . . 1 . . . . Kick 1 | . . . . . . . . . . . 1 . . . Crush 1 | . . . . . . . 1 . . . . . . . Escape Stasis 25 | . . . . . . . . . 10 . . 15 . . Rewire 11 | . . . . . . . . . 11 . . . . . Trap . | . . . . . . . . . . . . . . . Miscellaneous . | . . . . . . . . . . . . . . . Route ------- -11/Scrapyard -10/Materials (discovered 2 exits: [*Mat] / *Min) -10/Mines -10/Exiles (discovered 2 exits: *Min x2) -9/Mines -8/Materials -8/Garrison -8/Materials -7/Factory (discovered 2 exits: Sto / Gar) -7/Garrison -7/Factory -6/Factory -6/Garrison (discovered 3 exits: *Fac x3) -6/Factory -6/Extension History --------- Turn | Location | Event 20 | -11/Scrapyard | Discovered new exit (range 15) 206 | -11/Scrapyard | Entered Materials 316 | -10/Materials | Build established: Mutant 444 | -10/Materials | Discovered new exit (range 8) 646 | -10/Materials | Discovered new exit (range 11) 720 | -10/Materials | Entered Mines 733 | -10/Mines | Met a Derelict bent on vengeance 1094 | -10/Mines | Deemed a non-threat by the Exiles lab entrance 1094 | -10/Mines | Discovered new exit (range 5) 1101 | -10/Mines | Entered Exiles 1122 | -10/Exiles | Discovered new exit (range 16) 1140 | -10/Exiles | Met 8R-AWN 1169 | -10/Exiles | Met EX-HEX 1226 | -10/Exiles | Met EX-DEC 1239 | -10/Exiles | Learned location of Zion (-7) 1269 | -10/Exiles | Met EX-BIN 1309 | -10/Exiles | Aligned with FarCom system 1311 | -10/Exiles | Given EX-Vault access code 1349 | -10/Exiles | Opened EX-Vault 1359 | -10/Exiles | Found Skeleton Box 1394 | -10/Exiles | Warned to stay clear of 0b10 Research branches 1415 | -10/Exiles | Exiles lab attacked by MAIN.C 1519 | -10/Exiles | Discovered new exit (range 15) 1545 | -10/Exiles | Left Exiles lab with Skeleton Box 1545 | -10/Exiles | Entered Mines 1553 | -9/Mines | Assembled infested the area 1732 | -9/Mines | Met a Derelict who couldn't figure out how to use a Trap Extractor 1837 | -9/Mines | Learned Materials garrison access intel 2076 | -9/Mines | Discovered new exit (range 13) 2120 | -9/Mines | Joined a pair of Derelicts in attacking an 0b10 outpost 2193 | -9/Mines | System corruption reached 10% 2197 | -9/Mines | Entered Materials 2197 | -8/Materials | Evolved 4 slots: Propulsion x1, Utility x2, Weapon x1 2198 | -8/Materials | Loaded intel: 1 garrison access location 2492 | -8/Materials | Build established: Scavenger-Skirmisher 2740 | -8/Materials | Identified exit to Garrison 2740 | -8/Materials | Entered Garrison 2858 | -8/Garrison | Triggered checkpoint 2915 | -8/Garrison | Discovered new exit (range 12) 2934 | -8/Garrison | Identified exit to Materials 2945 | -8/Garrison | Installed Relay Interface Framework 2984 | -8/Garrison | Triggered checkpoint 3021 | -8/Garrison | Garrison Relay disabled 3195 | -8/Garrison | Entered Materials 3387 | -8/Materials | Lost 4 parts (2u2w) 3748 | -8/Materials | Build established: Scavenger-Gunner 4219 | -8/Materials | Discovered new exit (range 15) 4269 | -8/Materials | Entered Factory 4269 | -7/Factory | Evolved 2 slots: Propulsion x1, Utility x1 4270 | -7/Factory | Identified exit to Storage 4340 | -7/Factory | Identified exit to Garrison 4340 | -7/Factory | Entered Garrison 4443 | -7/Garrison | Lost 7 parts (1p2n2u2w) 4484 | -7/Garrison | Triggered checkpoint 4672 | -7/Garrison | Build established: Mutant 4722 | -7/Garrison | Triggered checkpoint 4752 | -7/Garrison | Triggered checkpoint 4838 | -7/Garrison | Core integrity fell below 50% 4859 | -7/Garrison | Lost 8 parts (2p2n1u3w) 4984 | -7/Garrison | Triggered checkpoint 5231 | -7/Garrison | Garrison Relay disabled 5378 | -7/Garrison | Triggered checkpoint 5455 | -7/Garrison | Triggered checkpoint 5466 | -7/Garrison | System corruption reached 10% 5517 | -7/Garrison | System corruption reached 30% 5536 | -7/Garrison | Core integrity fell below 20% 5589 | -7/Garrison | Lost 15 parts (1p5n3u6w) 5922 | -7/Garrison | Triggered checkpoint 6003 | -7/Garrison | Discovered new exit (range 15) 6043 | -7/Garrison | Expanded RIF knowledge: Signal Jamming 6052 | -7/Garrison | Entered Factory 6110 | -7/Factory | Build established: Scavenger-Tank 6602 | -7/Factory | Discovered new exit (range 16) 6638 | -7/Factory | Entered another Factory area 6638 | -6/Factory | Evolved 2 slots: Propulsion x2 6667 | -6/Factory | Identified exit to Garrison 6667 | -6/Factory | Entered Garrison 6714 | -6/Garrison | Triggered checkpoint 6871 | -6/Garrison | Triggered checkpoint 6887 | -6/Garrison | Triggered checkpoint 6887 | -6/Garrison | Triggered checkpoint 6927 | -6/Garrison | Destroyed 12 combat bots 7072 | -6/Garrison | Discovered new exit (range 15) 7074 | -6/Garrison | Triggered checkpoint 7117 | -6/Garrison | Lost 4 parts (1n1u2w) 7268 | -6/Garrison | Discovered new exit (range 10) 7326 | -6/Garrison | Triggered checkpoint 7620 | -6/Garrison | Lost 3 parts (1n1u1w) 7648 | -6/Garrison | Discovered new exit (range 10) 7680 | -6/Garrison | Expanded RIF knowledge: Patrol Navigation 7688 | -6/Garrison | Entered Factory 7795 | -6/Factory | Lost 3 parts (1p2n) 7930 | -6/Factory | Build established: Scavenger-Skirmisher 8044 | -6/Factory | Lost 3 parts (2n1u) 8172 | -6/Factory | Lost 3 parts (1n2w) 8406 | -6/Factory | System corruption reached 10% 8413 | -6/Factory | Core integrity fell below 50% 8460 | -6/Factory | Lost 12 parts (1p4n3u4w) 8563 | -6/Factory | Core integrity fell below 20% 8619 | -6/Factory | Lost 5 parts (1p2n2w) 8742 | -6/Factory | Discovered new exit (range 10) 8747 | -6/Factory | Entered Extension 8793 | -6/Extension | Spotted B-75 Beast 8796 | -6/Extension | Spotted B-75 Beast 8800 | -6/Extension | Destroyed by B-75 Beast with Heavy Machine Gun Last Messages --------------- Testing... Tracking enabled and active. Acquired Lgt. Deuterium Engine. Connecting with Terminal... System corrupted: Energy discharge (-39). Connecting with Door Terminal... >>Open Sealed Blast Doors opened. EXIT=FOUND LOCATION=UNKNOWN GOAL=ESCAPE 16 allies did not survive the journey. Receiving FarCom transmissions... System corrupted: Energy discharge (-33). System corrupted: Energy discharge (-30). Knocked back. B-75 Beast suffers critical hit (Blast). Gauss Rifle destroyed. Imp. Gravmag System destroyed. Knocked back. Map ----- +----------------------------------------------------+ | ?????????????????????????????????????????????????? | | ?????????????????????????????????????????????????? | | ?????????????????????????????????????????????????? | | ?????????????????????????????????????????????????? | | ?????????????????????????????????????????????????? | | ?????????????????????????????????????????????????? | | ?????????????????????????????????????????????????? | | ?????????????????????????????????????????????????? | | ?????????????????????????????????????????????????? | | ????????????????????????? #??????????????????????? | | ?????????????????????????w#??##??????????????????? | | ???????????????????????##u### ## #???????????????? | | ??????????????????????#"" "" Y "??????????????? | | ??????????????????????# " " Y "?????????????? | | ??????????????????????# ???????????? | | ??????????????????????# ???????????? | | ####################### ??????????? | | ??????????? | | ?????????? | | ?????????? | | % ?????????? | | % ukkk ????????? | | ######################; BB BB #?????????? | | ?????????????????????## BB BB #?????????? | | ??????????????????????# % #?????????? | | ??????????????????????#% @ #?????????? | | ??????????????????????# #?????????? | | ??????????????????????######T#"""######??????????? | | ????????????????????????????##???????????????????? | | ?????????????????????????????????????????????????? | | | | | | | | | | | | | | | | | | | | | | | | | | | | | | | | | | | | | | | | | +----------------------------------------------------+ Best States ------------- Heat Dissipation 51 Energy Generation 18 Energy Capacity 360 Matter Stores 300 Matter Capacity 300 Sight Range 22 Terrain Scan Density 10 Armor Coverage 300 Weapon Cycling 15 Evasion (%) 55 Targeting Accuracy 13 Target Analysis 6 Core Analysis 6 Recoil Reduction 4 Matter Filtering 30 Relay Coupler Types 67 Relay Coupler Value 3 Item Schematics ----------------- None Robot Schematics ------------------ None Fabricated ------------ Nothing Alien Tech Used ----------------- None Achievements -------------- None Challenges ------------ None Game ------ Seed CoreUltimateReconstructor Manual? 0 Play Time 01:02:35 Cumulative 277.7 hours Start 2021.05.17 @ 16:54:04 End 2021.05.24 @ 01:03:13 Sessions 3 Manual Loads 0 Difficulty Rogue Special Mode None Game No. 270 Rogue 270 Adventurer 0 Explorer 0 Win Type - Total 15 Types 9/0/4/2/0/0/0/0/0 Lore% 83 Gallery% 89 Achievement% 76 Wizard Run 0 Options --------- ASCII 0 Keyboard 1 Movement Numpad Keybinds 0 Fullscreen 1 Font 18/SmallcapsGlow Map View 76x50 Tactical HUD 1 Map Filters NONE Filters NONE Steam 1 RUN: 1d28a3ca-8ff9-422f-9e69-03e1f4d9011a